bitfinex/quotes_BTCUSD_20250119
["timestamp","ask_amount","ask_price","bid_price","bid_amount"]
[1737324458874,0.48576849,103140.0,103130.0,0.00015053]
[1737324459740,0.346983,103110.0,103100.0,0.00144079]
[1737324459927,0.44149649,103110.0,103100.0,0.00063748]
[1737324461236,0.29149649,103110.0,103100.0,0.00063748]
[1737324461451,0.48719646,103110.0,103100.0,0.00063748]
[1737324461658,0.38719646,103110.0,103100.0,0.00063748]
[1737324461862,0.38719646,103110.0,103070.0,0.00437936]
[1737324461863,0.247012,103080.0,103070.0,0.00437936]
[1737324462068,0.19152549,103080.0,103070.0,0.00392701]
[1737324462279,0.50148254,103080.0,103070.0,0.00392701]
[1737324462479,0.56412549,103080.0,103070.0,0.00392701]
[1737324462682,0.46412549,103080.0,103070.0,0.01446518]
[1737324464019,0.31412549,103080.0,103070.0,0.01446518]
[1737324464227,0.46412549,103080.0,103070.0,0.00839403]
[1737324464449,0.56412549,103080.0,103070.0,0.00839403]
[1737324464644,0.31412549,103080.0,103070.0,0.00839403]
[1737324464890,0.46412549,103080.0,103070.0,0.00839403]
[1737324465056,0.31412549,103080.0,103070.0,0.00839403]
[1737324465842,0.41412549,103080.0,103070.0,0.00050154]
[1737324467165,0.31412549,103080.0,103070.0,0.00050154]
[1737324467608,0.46412549,103080.0,103070.0,0.00765223]
[1737324467934,0.31412549,103080.0,103070.0,0.00765223]
[1737324468656,0.46412549,103080.0,103070.0,0.00765223]
[1737324469697,0.46412549,103080.0,103070.0,0.0167565]
[1737324470168,0.19451349,103080.0,103070.0,0.1137775]
[1737324470383,0.19451349,103080.0,103070.0,0.0167565]
[1737324470384,0.19152549,103080.0,103070.0,0.0167565]
[1737324470793,0.19152549,103080.0,103070.0,0.04278711]
[1737324470991,0.26888244,103080.0,103070.0,0.04278711]
[1737324471146,0.34152549,103080.0,103070.0,0.04764181]
[1737324471931,0.29152549,103080.0,103070.0,0.04764181]
[1737324472135,0.44152549,103080.0,103070.0,0.04764181]
[1737324472339,0.19152549,103080.0,103070.0,0.04764181]
[1737324472561,0.21995911,103080.0,103070.0,0.04764181]
[1737324472768,0.12544562,103080.0,103070.0,0.04764181]
[1737324473010,0.27544562,103080.0,103070.0,0.04764181]
[1737324473213,0.34152549,103080.0,103070.0,0.04764181]
[1737324473650,0.19152549,103080.0,103070.0,0.03132121]
[1737324473965,0.33902549,103080.0,103070.0,0.03174911]
[1737324474165,0.32288618,103080.0,103070.0,0.03174911]
[1737324474381,0.22288618,103080.0,103070.0,0.03174911]
[1737324474747,0.22288618,103080.0,103050.0,2e-07]
[1737324474748,0.24703,103060.0,103050.0,2e-07]
[1737324474910,0.36911611,103050.0,103040.0,1e-06]
[1737324475109,0.15,103040.0,103030.0,0.00106789]
[1737324475333,0.19156249,103040.0,103030.0,0.00106789]
[1737324475531,0.34156249,103040.0,103030.0,0.00106789]
[1737324475731,0.36017749,103040.0,103030.0,0.00106789]
[1737324475930,0.36017749,103040.0,103030.0,0.000114]
[1737324476153,0.55469098,103040.0,103030.0,0.000114]
[1737324476354,0.51312849,103040.0,103020.0,0.0004278]
[1737324476555,0.29157249,103030.0,103020.0,0.0004278]
[1737324477055,0.44157249,103030.0,103020.0,0.0004278]
[1737324477901,0.34157249,103030.0,103020.0,0.0004278]
[1737324478702,0.29157249,103030.0,103020.0,0.0004278]
[1737324479118,0.44157249,103030.0,103020.0,0.0004278]
[1737324479247,0.29157249,103030.0,103020.0,0.0004278]
[1737324480288,0.22157249,103030.0,103020.0,0.0004278]
[1737324480690,0.37157249,103030.0,103020.0,0.0004278]
[1737324481091,0.47157249,103030.0,103020.0,0.0004278]
[1737324481330,0.32157249,103030.0,103020.0,0.0004278]
[1737324481590,0.22157249,103030.0,103020.0,0.0004278]
[1737324481771,0.47157249,103030.0,103020.0,0.0004278]
[1737324481971,0.37157249,103030.0,103020.0,0.0004278]
[1737324482110,0.38858134,103030.0,103020.0,0.0004278]
[1737324482472,0.38858134,103030.0,102960.0,0.296354]
[1737324482670,0.347106,102980.0,102960.0,0.097119]
[1737324482875,0.15,102970.0,102960.0,0.291354]
[1737324483078,0.247115,102970.0,102950.0,0.53994726]
[1737324483291,0.15,102970.0,102960.0,0.097125]
[1737324484026,0.15049846,102970.0,102960.0,0.097125]
[1737324484232,0.291275,103000.0,102980.0,0.097106]
[1737324484427,0.58545,103000.0,102980.0,0.00015028]
[1737324484695,0.58287049,103000.0,102980.0,0.00015028]
[1737324484903,0.197096,102990.0,102980.0,0.00015028]
[1737324485125,0.19160949,102990.0,102980.0,0.0302954]
[1737324485344,0.19160949,102990.0,102980.0,0.00015028]
[1737324485752,0.38840949,102990.0,102980.0,0.00015028]
[1737324486397,0.23840949,102990.0,102980.0,0.00015028]
[1737324486637,0.33840949,102990.0,102980.0,0.00015028]
[1737324486843,0.15,103010.0,102980.0,0.43933961]
[1737324487000,0.15,103020.0,103010.0,0.314226]
[1737324487400,0.1756,103040.0,103020.0,0.097068]
[1737324487625,0.25,103040.0,103030.0,0.097056]
[1737324487848,0.1,103060.0,103050.0,0.09704]
[1737324488053,0.1,103070.0,103060.0,0.09703]
[1737324488252,0.1,103090.0,103080.0,0.097008]
[1737324488450,0.15,103080.0,103070.0,0.023]
[1737324488613,0.15,103080.0,103070.0,0.120021]
[1737324488818,0.1,103090.0,103080.0,0.291015]
[1737324489027,0.15,103090.0,103070.0,0.485077]
[1737324489310,0.247004,103090.0,103070.0,0.41820739]
[1737324489510,0.15,103090.0,103070.0,0.291047]
[1737324489715,0.15,103080.0,103060.0,0.29121628]
[1737324489946,0.15,103070.0,103060.0,0.03029473]
[1737324490168,0.541011,103090.0,103060.0,0.19420028]
[1737324490364,0.44151849,103090.0,103070.0,0.291059]
[1737324490609,0.15,103090.0,103080.0,0.097012]
[1737324490775,0.10089859,103100.0,103090.0,0.097002]
[1737324490946,0.24789459,103100.0,103080.0,0.194011]
[1737324491148,0.441008,103090.0,103070.0,0.291045]
[1737324491347,0.441036,103080.0,103060.0,0.29121828]
[1737324491569,0.097021,103070.0,103060.0,0.00015028]
[1737324491779,0.2455294,103070.0,103060.0,0.00015028]
[1737324491934,0.29153449,103070.0,103060.0,0.00015028]
[1737324492141,0.19153449,103070.0,103060.0,0.00015028]
[1737324492596,0.29153449,103070.0,103060.0,0.00015028]
[1737324492807,0.19153449,103070.0,103060.0,0.00015028]
[1737324493018,0.347049,103040.0,103030.0,0.00095442]
[1737324493225,0.34171208,103040.0,103030.0,0.00095442]
[1737324493428,0.25,103010.0,103000.0,0.097087]
[1737324493626,0.097079,103010.0,103000.0,0.03006909]
[1737324493850,0.488299,103020.0,102980.0,0.19514942]
[1737324493851,0.247089,103000.0,102980.0,0.19514942]
[1737324494063,0.15,103000.0,102990.0,0.097096]
[1737324494263,0.15,103000.0,102990.0,0.12715376]
[1737324494438,0.15,103000.0,102990.0,0.03005776]
[1737324494640,0.15,103000.0,102990.0,0.12715376]
[1737324495070,0.2472365,103000.0,102990.0,0.03005776]
[1737324495285,0.06535111,103000.0,102990.0,0.03005776]
[1737324495490,0.06535111,103000.0,102990.0,0.097096]
[1737324495701,0.06535111,103020.0,102990.0,0.12457125]
[1737324495902,0.391211,103020.0,103000.0,0.291244]
[1737324496150,0.097077,103010.0,103000.0,0.03005776]
[1737324496354,0.3569416,103010.0,103000.0,0.03005776]
[1737324496556,0.29159049,103010.0,103000.0,0.03005776]
[1737324497369,0.16535111,103000.0,102990.0,0.2162507]
[1737324497569,0.19281426,103000.0,102990.0,0.24525555]
[1737324498215,0.19281426,103000.0,102990.0,0.02900485]
[1737324498421,0.097096,102990.0,102980.0,0.2164002]
[1737324498605,0.3921797,103000.0,102980.0,0.34249869]
[1737324498816,0.4549403,103000.0,102980.0,0.24539269]
[1737324499030,0.45751681,103000.0,102980.0,0.34249369]
[1737324499231,0.0009007,103000.0,102990.0,0.097096]
[1737324499413,0.0009007,103000.0,102990.0,0.37108182]
[1737324499943,0.0009007,103000.0,102990.0,0.62873071]
[1737324500263,0.16535111,103040.0,103030.0,0.097059]
[1737324500478,0.197049,103040.0,103030.0,0.02899249]
[1737324500687,0.16535111,103040.0,103030.0,0.097059]
[1737324500883,0.16535111,103040.0,103030.0,0.02899249]
[1737324501110,0.26240011,103040.0,103020.0,0.51429649]
[1737324501476,0.197059,103030.0,103020.0,0.02899249]
[1737324501707,0.06535111,103010.0,102990.0,0.19512942]
[1737324502006,0.441234,103010.0,103000.0,0.21605863]
[1737324502206,0.441234,103010.0,103000.0,0.24504224]
[1737324502207,0.53574749,103010.0,103000.0,0.24504224]
[1737324502360,0.53574749,103010.0,103000.0,0.21605863]
[1737324502562,0.53574749,103010.0,103000.0,0.24503463]
[1737324502793,0.16244711,102990.0,102980.0,0.21606763]
[1737324502924,0.19160949,102990.0,102980.0,0.24506143]
[1737324503364,0.31650949,102990.0,102980.0,0.24506143]
[1737324503579,0.54392704,102990.0,102980.0,0.14664663]
[1737324503890,0.097106,102980.0,102970.0,0.31950074]
[1737324504132,0.19161949,102980.0,102970.0,0.31965024]
[1737324504353,0.19161949,102980.0,102930.0,0.381487]
[1737324504354,0.097143,102940.0,102930.0,0.381487]
[1737324504551,0.19165649,102940.0,102930.0,0.41107928]
[1737324504729,0.1,102940.0,102930.0,0.38244152]
[1737324505030,0.26249411,102940.0,102930.0,0.41107311]
[1737324505260,0.3570076,102940.0,102930.0,0.09983992]
[1737324505496,0.19165649,102940.0,102930.0,0.02958611]
[1737324505694,0.06535111,102950.0,102930.0,0.02863159]
[1737324505900,0.2598646,102950.0,102930.0,0.291439]
[1737324506109,0.00015039,102950.0,102940.0,0.097143]
[1737324506313,0.00015039,102950.0,102940.0,0.14857866]
[1737324506524,0.4,103000.0,102940.0,0.14857866]
[1737324506525,0.1,103000.0,102970.0,0.194223]
[1737324506730,0.09466408,103000.0,102990.0,0.291289]
[1737324506929,0.09835059,103020.0,103010.0,0.097077]
[1737324507059,0.19542059,103020.0,103010.0,0.02863159]
[1737324507264,0.19286408,103020.0,103010.0,0.12570859]
[1737324507498,0.09835059,103020.0,103010.0,0.02863159]
[1737324507704,0.19540959,103030.0,103010.0,0.12570459]
[1737324507917,0.09835059,103030.0,103020.0,0.097068]
[1737324508047,0.00015053,103040.0,103030.0,0.097059]
[1737324508248,0.00015053,103040.0,103030.0,0.37068392]
[1737324508484,0.00015053,103040.0,103030.0,0.67233333]
[1737324508689,0.19537459,103070.0,103050.0,0.097039]
[1737324508911,0.28719408,103060.0,103050.0,0.02863159]
[1737324509148,0.09565059,103040.0,103010.0,0.1296]
[1737324509365,0.28722508,103030.0,103010.0,0.07722232]
[1737324509576,0.28722508,103030.0,103010.0,0.02822232]
[1737324509577,0.09565059,103020.0,103010.0,0.02822232]
[1737324509782,0.09565059,103020.0,103000.0,0.291255]
[1737324509783,0.09451349,103020.0,103000.0,0.02822232]
[1737324509985,0.09565059,103000.0,102990.0,0.097096]
[1737324510193,0.194081,103050.0,103000.0,0.00015053]
[1737324510194,0.194131,103030.0,103000.0,0.00015053]
[1737324510449,0.09565059,103020.0,103000.0,0.02836736]
[1737324510650,0.09565059,103010.0,103000.0,0.12545436]
[1737324510856,0.09565059,103010.0,103000.0,0.02836736]
[1737324511057,0.09565059,103010.0,103000.0,0.12545436]
[1737324511263,0.09565059,103010.0,103000.0,0.08562106]
[1737324511440,0.38573749,103020.0,103000.0,0.08562106]
[1737324511441,0.19272359,103020.0,103000.0,0.37686306]
[1737324511645,0.09565059,103020.0,103000.0,0.27978206]
[1737324511850,0.09565059,103040.0,103020.0,0.194137]
[1737324512076,0.09565059,103040.0,103030.0,0.09705]
[1737324512299,0.09565059,103040.0,103030.0,0.15556099]
[1737324512492,0.09565059,103040.0,103030.0,0.05851099]
[1737324512633,0.09565059,103040.0,103030.0,0.15556999]
[1737324512846,0.00089943,103050.0,103040.0,0.097049]
[1737324513050,0.00089943,103050.0,103040.0,0.12526583]
[1737324513310,0.09793943,103050.0,103040.0,0.02821683]
[1737324513471,0.097049,103040.0,103030.0,0.02821683]
[1737324513672,0.19269959,103040.0,103030.0,0.02821683]
[1737324513875,0.19269959,103040.0,103020.0,0.02822979]
[1737324513876,0.097059,103030.0,103020.0,0.02822979]
[1737324514097,0.19157249,103030.0,103020.0,0.00015053]
[1737324514500,0.19157249,103030.0,103020.0,0.02838032]
[1737324514873,0.38681759,103040.0,103020.0,0.12544332]
[1737324514988,0.097049,103040.0,103030.0,0.097056]
[1737324515185,0.19269959,103040.0,103030.0,0.02822979]
[1737324515388,0.19269959,103040.0,103020.0,0.2796522]
[1737324515389,0.097059,103030.0,103020.0,0.00015053]
[1737324515598,0.19157249,103030.0,103020.0,0.0284025]
[1737324515807,0.29157249,103030.0,103020.0,0.0284025]
[1737324516170,0.58608598,103030.0,103020.0,0.0284025]
[1737324516338,0.34157249,103030.0,103020.0,0.0284025]
[1737324516525,0.36457249,103030.0,103020.0,5e-07]
[1737324516736,0.36457249,103030.0,102990.0,0.00138258]
[1737324516737,0.097087,103000.0,102990.0,0.00138258]
[1737324516988,0.19160049,103000.0,102990.0,0.00138308]
[1737324517163,0.26901024,103000.0,102990.0,0.00138258]
[1737324517324,0.19160049,103000.0,102990.0,0.00138258]
[1737324517525,0.19290361,103010.0,103000.0,0.03430776]
[1737324517729,0.3844941,103010.0,103000.0,0.03430826]
[1737324517958,0.3844941,103010.0,103000.0,0.03430776]
[1737324518162,0.097069,103020.0,103000.0,0.33365919]
[1737324518369,0.097077,103010.0,103000.0,0.13949119]
[1737324518573,0.097077,103010.0,103000.0,0.10688888]
[1737324518768,0.097077,103010.0,103000.0,0.20397288]
[1737324518930,0.097077,103010.0,103000.0,0.10688888]
[1737324519587,0.19159049,103010.0,103000.0,0.10688888]
[1737324519766,0.19159049,103010.0,103000.0,0.10694888]
[1737324520868,0.388289,103020.0,103000.0,0.20403388]
[1737324521128,0.097077,103010.0,103000.0,0.20403388]
[1737324521256,0.29121,103020.0,103000.0,0.59236088]
[1737324521457,0.097077,103010.0,103000.0,0.10694888]
[1737324521709,0.097061,103030.0,103010.0,0.194154]
[1737324521907,0.388224,103040.0,103020.0,0.097065]
[1737324522113,0.194121,103030.0,103010.0,0.03011029]
[1737324522257,0.097068,103020.0,103010.0,0.03011029]
[1737324522458,0.11696671,103010.0,103000.0,0.10694888]
[1737324522664,0.48281549,103020.0,103000.0,0.10694888]
[1737324522910,0.097077,103010.0,103000.0,0.10694888]
[1737324523299,0.19158949,103020.0,103000.0,0.2249091]
[1737324523477,0.00015045,103040.0,103010.0,0.09451349]
[1737324523679,0.00015045,103040.0,103020.0,0.194124]
[1737324523834,0.00015045,103040.0,103030.0,0.19157249]
[1737324524030,0.00015045,103040.0,103030.0,0.29157249]
[1737324524209,0.00015045,103040.0,103030.0,0.68347244]
[1737324525058,0.00015045,103040.0,103030.0,0.69377237]
[1737324525524,0.00015045,103040.0,103030.0,0.68347244]
[1737324525939,0.00089943,103050.0,103040.0,0.347049]
[1737324526113,0.00089943,103050.0,103040.0,0.59204233]
[1737324526315,0.00089943,103050.0,103040.0,0.21200971]
[1737324526783,0.00089943,103050.0,103020.0,0.194121]
[1737324526937,0.09705,103040.0,103020.0,0.29133345]
[1737324527145,0.19245892,103050.0,103030.0,0.291171]
[1737324527322,0.00089943,103050.0,103040.0,0.097049]
[1737324527838,0.00089943,103050.0,103040.0,0.19156249]
[1737324528039,0.00089943,103050.0,103040.0,0.097049]
[1737324528244,0.00089943,103050.0,103040.0,0.19156249]
[1737324528442,0.00089943,103050.0,103040.0,0.24096249]
[1737324528968,0.09793943,103050.0,103030.0,0.388206]
[1737324529143,0.28903443,103060.0,103040.0,0.097049]
[1737324529354,0.09704,103050.0,103030.0,0.57976949]
[1737324529553,0.194061,103060.0,103020.0,0.48547745]
[1737324529750,0.19155749,103050.0,103030.0,0.291172]
[1737324529953,0.097034,103060.0,103040.0,0.291131]
[1737324530115,0.28857449,103060.0,103030.0,0.194112]
[1737324530316,0.097041,103050.0,103030.0,0.52411765]
[1737324530516,0.19408,103050.0,103030.0,0.03883965]
[1737324530738,0.291126,103050.0,103030.0,0.13589565]
[1737324530961,0.19154849,103060.0,103040.0,0.291142]
[1737324531178,0.291141,103050.0,103030.0,0.03883965]
[1737324531357,0.097049,103040.0,103030.0,0.03883965]
[1737324532170,0.582283,103050.0,103030.0,0.03883965]
[1737324532395,0.097059,103030.0,103020.0,0.00015045]
[1737324532598,0.19157249,103030.0,103020.0,0.00015045]
[1737324533071,0.388222,103040.0,103020.0,0.09721545]
[1737324533199,0.097053,103040.0,103020.0,0.09721045]
[1737324533406,0.291161,103040.0,103020.0,0.09721245]
[1737324533609,0.388174,103050.0,103020.0,0.4369586]
[1737324533799,0.097052,103040.0,103020.0,0.3398866]
[1737324533994,0.097059,103030.0,103020.0,0.00015045]
[1737324534244,0.28862849,103040.0,103020.0,0.09721845]
[1737324534245,0.38568549,103040.0,103020.0,0.09721845]
[1737324534466,0.097059,103030.0,103020.0,0.09721845]
[1737324534682,0.097059,103030.0,103020.0,0.00015045]
[1737324534864,0.38567449,103040.0,103020.0,0.29134945]
[1737324535067,0.38567449,103040.0,103020.0,0.3398986]
[1737324535272,0.097059,103030.0,103020.0,0.0486996]
[1737324535471,0.38567849,103040.0,103020.0,0.3399016]
[1737324535700,0.097059,103030.0,103020.0,0.0486996]
[1737324536051,0.097059,103030.0,103020.0,0.00015045]
[1737324536251,0.19157249,103030.0,103020.0,0.00015045]
[1737324537096,0.19257249,103030.0,103020.0,0.00015045]
[1737324537307,0.19157249,103030.0,103020.0,0.00015045]
[1737324538308,0.09451349,103030.0,103020.0,0.00015045]
[1737324538510,0.19157249,103030.0,103020.0,0.00015045]
[1737324538813,0.19257249,103030.0,103020.0,0.00015045]
[1737324538975,0.19157249,103030.0,103020.0,0.00015045]
[1737324539178,0.19257249,103030.0,103020.0,0.00015045]
[1737324539378,0.19157249,103030.0,103020.0,0.00015045]
[1737324539807,0.19257249,103030.0,103020.0,0.00015045]
[1737324540171,0.19157249,103030.0,103020.0,0.00015045]
[1737324540390,0.19257249,103030.0,103020.0,0.00015045]
[1737324540682,0.001,103030.0,103020.0,0.00015045]
[1737324540882,0.19257249,103030.0,103020.0,0.00015045]
[1737324541591,0.19157249,103030.0,103020.0,0.00015045]
[1737324541795,0.27357249,103030.0,103020.0,0.00015045]
[1737324541971,0.27457249,103030.0,103020.0,0.00015045]
[1737324542355,0.19257249,103030.0,103020.0,0.00015045]
[1737324542561,0.22257249,103030.0,103020.0,0.00015045]
[1737324542837,0.22157249,103030.0,103020.0,0.00015045]
[1737324543026,0.22257249,103030.0,103020.0,0.00015045]
[1737324543389,0.22157249,103030.0,103020.0,0.00015045]
[1737324543594,0.22257249,103030.0,103020.0,0.00015045]
[1737324544343,0.12551349,103030.0,103020.0,0.00015045]
[1737324544913,0.12451349,103030.0,103020.0,0.00015045]
[1737324545107,0.12551349,103030.0,103020.0,0.00015045]
[1737324545687,0.12451349,103030.0,103020.0,0.00015045]
[1737324545866,0.12551349,103030.0,103020.0,0.00015045]
[1737324546070,0.12451349,103030.0,103020.0,0.00015045]
[1737324546219,0.13696484,103030.0,103020.0,0.00015045]
[1737324546420,0.13796484,103030.0,103020.0,0.00015045]
[1737324546667,0.13696484,103030.0,103020.0,0.00015045]
[1737324546869,0.12451349,103030.0,103020.0,0.00015045]
[1737324547444,0.34451349,103030.0,103020.0,0.00015045]
[1737324548139,0.34551349,103030.0,103020.0,0.00015045]
[1737324548470,0.09451349,103030.0,103020.0,0.00015045]
[1737324548646,0.09551349,103030.0,103020.0,0.00015045]
[1737324548849,0.09451349,103030.0,103020.0,0.00015045]
[1737324549050,0.09451349,103030.0,103020.0,0.00057855]
[1737324549277,0.09551349,103030.0,103020.0,0.00057855]
[1737324549452,0.00089901,103030.0,103020.0,0.00057855]
[1737324549644,0.0954125,103030.0,103020.0,0.00057855]
[1737324549862,0.0964125,103030.0,103020.0,0.00057855]
[1737324550235,0.3464125,103030.0,103020.0,0.00057855]
[1737324550774,0.0964125,103030.0,103020.0,0.00057855]
[1737324550977,0.0954125,103030.0,103020.0,0.00057855]
[1737324551414,0.0964125,103030.0,103020.0,0.00057855]
[1737324551728,0.0954125,103030.0,103020.0,0.00057855]
[1737324551932,0.00189901,103030.0,103020.0,0.00057855]
[1737324552155,0.00089901,103030.0,103020.0,0.00057855]
[1737324552524,0.00189901,103030.0,103020.0,0.00057855]
[1737324552691,0.00089901,103030.0,103020.0,0.09509204]
[1737324552891,0.00089901,103030.0,103020.0,0.47600124]
[1737324553093,0.00089901,103030.0,103020.0,0.79948108]
[1737324553296,9.87279901,103050.0,103040.0,0.4]
[1737324553556,9.68765184,103050.0,103040.0,0.66799333]
[1737324553760,8.93713289,103050.0,103040.0,0.66799333]
[1737324554071,6.68743289,103050.0,103040.0,0.66799333]
[1737324554278,6.68743289,103050.0,103040.0,0.51751349]
[1737324554422,6.68743289,103050.0,103040.0,0.59561349]
[1737324554631,6.68743289,103050.0,103040.0,0.60600377]
[1737324554948,6.68843289,103050.0,103040.0,0.59561349]
[1737324555274,6.68743289,103050.0,103040.0,0.24451349]
[1737324555522,6.68843289,103050.0,103040.0,0.24451349]
[1737324555722,6.68743289,103050.0,103020.0,0.00057855]
[1737324555966,0.09451349,103040.0,103020.0,0.00057855]
[1737324556172,0.23868576,103040.0,103020.0,0.00057855]
[1737324556373,0.19451349,103040.0,103020.0,0.00057855]
[1737324556612,0.19451349,103030.0,103020.0,0.00057855]
[1737324556805,0.24301349,103030.0,103020.0,0.00057855]
[1737324557007,0.39301349,103030.0,103020.0,0.00057855]
[1737324557203,0.51111484,103030.0,103020.0,0.00057855]
[1737324557640,0.41111484,103030.0,103020.0,0.00057855]
[1737324557874,0.41111484,103030.0,103000.0,2.000488]
[1737324557875,0.4273,103010.0,103000.0,2.000488]
[1737324558080,0.37181349,103010.0,103000.0,1.122488]
[1737324558238,0.37181349,103010.0,102970.0,0.00095428]
[1737324558239,0.1,102980.0,102970.0,0.00095428]
[1737324558461,0.19451349,102980.0,102970.0,0.00095428]
[1737324558879,0.09451349,102980.0,102970.0,0.00095428]
[1737324559188,0.19451349,102980.0,102920.0,0.0004286]
[1737324559327,0.09451349,102970.0,102920.0,0.09494209]
[1737324559531,0.09451349,102970.0,102920.0,0.09544055]
[1737324560592,0.09451349,102970.0,102930.0,0.09451349]
[1737324560774,0.09451349,102970.0,102920.0,0.15092706]
[1737324560974,0.1,103000.0,102930.0,0.34451349]
[1737324561184,0.09451349,102990.0,102940.0,0.39451349]
[1737324561561,0.09451349,102990.0,102940.0,0.49451349]
[1737324561749,0.09451349,102990.0,102940.0,0.64499333]
[1737324561994,0.09451349,102990.0,102970.0,0.0004281]
[1737324562228,0.00121404,102980.0,102970.0,0.0004281]
[1737324562454,0.09572753,102980.0,102970.0,0.0004281]
[1737324562667,0.09451349,102980.0,102970.0,0.0004281]
[1737324562992,0.26944639,103010.0,102970.0,0.0004281]
[1737324563371,0.09572746,103000.0,102970.0,0.00057869]
[1737324563790,0.00089901,103030.0,102980.0,0.09451349]
[1737324563982,0.09451349,103020.0,102970.0,0.00057869]
[1737324564144,0.09451349,103020.0,102980.0,0.09451349]
[1737324564825,0.09572703,103010.0,102970.0,0.00057869]
[1737324565053,0.10089901,103030.0,102980.0,0.09451349]
[1737324565054,0.00211264,103030.0,102980.0,0.09451349]
[1737324565195,0.09572712,103020.0,102980.0,0.09451349]
[1737324566344,0.00121362,103010.0,102970.0,0.00057869]
[1737324566545,0.09451349,103000.0,102970.0,0.00057869]
[1737324566711,0.00121381,103020.0,102980.0,0.09451349]
[1737324566906,0.00089901,103030.0,102980.0,0.19451349]
[1737324567118,0.00089901,103030.0,102990.0,0.5291]
[1737324567317,0.00089901,103030.0,103000.0,0.49451349]
[1737324567570,0.00089901,103030.0,103020.0,0.45047984]
[1737324567743,0.00089901,103030.0,103020.0,0.77409333]
[1737324567954,0.00089901,103030.0,103020.0,0.79709333]
[1737324568165,6.68743289,103050.0,103040.0,0.4]
[1737324568328,6.68743289,103050.0,103040.0,0.64499333]
[1737324568533,6.43213289,103050.0,103040.0,0.67649333]
[1737324568752,6.42378336,103050.0,103040.0,0.67649333]
[1737324568989,4.57416645,103050.0,103040.0,0.67649333]
[1737324569192,3.1395106,103050.0,103040.0,0.67649333]
[1737324569393,3.02758303,103050.0,103040.0,0.68663785]
[1737324569612,2.83045688,103050.0,103040.0,0.68663785]
[1737324569808,2.43501001,103050.0,103040.0,0.90931485]
[1737324570012,2.0192426,103050.0,103040.0,0.92949369]
[1737324570274,1.52592848,103050.0,103040.0,0.96676047]
[1737324570454,1.52592848,103050.0,103040.0,0.98602525]
[1737324570455,1.11910472,103050.0,103040.0,0.98602525]
[1737324570654,1.09636774,103050.0,103040.0,0.7617166]
[1737324570882,1.09636774,103050.0,103040.0,0.84810741]
[1737324571151,1.06404256,103050.0,103040.0,0.96382641]
[1737324571347,0.99647249,103050.0,103040.0,0.95507227]
[1737324571468,0.80209466,103050.0,103040.0,0.88571227]
[1737324571669,0.80209466,103050.0,103040.0,0.76363327]
[1737324572005,0.68739466,103050.0,103040.0,0.59316941]
[1737324572188,0.68739466,103050.0,103040.0,0.57016941]
[1737324572391,0.68739466,103050.0,103040.0,0.55090463]
[1737324572577,0.68739466,103050.0,103040.0,0.40090463]
[1737324572778,0.68739466,103050.0,103040.0,0.51363785]
[1737324573036,0.68739466,103050.0,103040.0,0.34451349]
[1737324573539,0.68739466,103050.0,103040.0,0.49499333]
[1737324573769,0.68739466,103050.0,103040.0,0.51799333]
[1737324573903,0.68739466,103050.0,103040.0,0.66799333]
[1737324573904,0.68068181,103050.0,103040.0,0.66799333]
[1737324574104,0.09862912,103050.0,103040.0,0.95576233]
[1737324574329,0.00089859,103100.0,103090.0,0.423]
[1737324574482,0.00140056,103100.0,103090.0,0.64499333]
[1737324574683,0.00140056,103100.0,103090.0,0.66799333]
[1737324575520,0.00140056,103100.0,103090.0,0.68845719]
[1737324575723,0.00140056,103100.0,103090.0,0.69270719]
[1737324576251,0.00050056,103100.0,103090.0,0.69270719]
[1737324576802,0.00050056,103100.0,103090.0,0.6924985]
[1737324577005,0.00050056,103100.0,103090.0,0.56799333]
[1737324577228,0.00050056,103100.0,103090.0,0.51751349]
[1737324577466,0.00050056,103100.0,103090.0,0.6924985]
[1737324578615,0.00050056,103100.0,103090.0,0.70257308]
[1737324578816,0.0009007,103110.0,103100.0,0.2768517]
[1737324579011,0.00105116,103110.0,103100.0,0.19451349]
[1737324579210,0.00105116,103110.0,103100.0,0.24451349]
[1737324579529,0.00105116,103110.0,103100.0,0.34451349]
[1737324579860,0.00105116,103110.0,103100.0,0.24451349]
[1737324580065,0.00105116,103110.0,103100.0,0.09451349]
[1737324581367,0.08076986,103160.0,103110.0,0.01923014]
[1737324581540,0.09569548,103150.0,103100.0,0.11471334]
[1737324581682,0.09569548,103150.0,103110.0,0.02019985]
[1737324581887,0.19412692,103150.0,103090.0,0.01923014]
[1737324582132,0.08076986,103130.0,103080.0,0.01923014]
[1737324582307,0.32646534,103120.0,103040.0,0.03726678]
[1737324582682,0.17646534,103120.0,103070.0,0.01923014]
[1737324583033,0.32646534,103120.0,103070.0,0.01923014]
[1737324583234,0.08076986,103110.0,103060.0,0.01923014]
[1737324583433,0.11544686,103100.0,103060.0,0.11374363]
[1737324583605,0.19621672,103100.0,103060.0,0.00050197]
[1737324584054,0.34621672,103100.0,103060.0,0.00050197]
[1737324584253,0.08076986,103090.0,103060.0,0.00050197]
[1737324584457,0.22299548,103080.0,103060.0,0.00050197]
[1737324584657,0.1273,103080.0,103060.0,0.01973211]
[1737324585110,0.1273,103080.0,103070.0,0.1147138]
[1737324585745,0.1273,103080.0,103070.0,0.01923014]
[1737324587356,0.1273,103080.0,103060.0,0.00050197]
[1737324587597,0.22181349,103080.0,103060.0,0.00050197]
[1737324588292,0.22181349,103080.0,103060.0,0.01973211]
[1737324588293,0.1273,103080.0,103060.0,0.01973211]
[1737324589194,0.1273,103080.0,103070.0,0.01923014]
[1737324589381,0.0775,103100.0,103060.0,0.00050197]
[1737324589583,0.00118199,103090.0,103060.0,0.02070222]
[1737324590413,0.19215897,103100.0,103070.0,0.01923014]
[1737324590793,0.09569548,103090.0,103060.0,0.01973211]
[1737324591908,0.09569548,103090.0,103060.0,0.00050197]
[1737324592514,0.09553532,103090.0,103060.0,0.00050197]
[1737324592705,0.09553532,103090.0,103060.0,0.01973211]
[1737324592955,0.09646349,103100.0,103080.0,0.01923014]
[1737324593694,0.0775,103100.0,103080.0,0.01923014]
[1737324593898,0.0775,103100.0,103080.0,0.02020018]
[1737324594226,0.09569548,103090.0,103060.0,0.00050197]
[1737324594807,0.0489,103080.0,103060.0,0.00050197]
[1737324595108,0.17361349,103070.0,103060.0,0.00050197]
[1737324595312,0.17479548,103070.0,103060.0,0.00050197]
[1737324595460,0.25556534,103070.0,103060.0,0.00050197]
[1737324595655,0.25438335,103070.0,103060.0,0.00050197]
[1737324596211,0.12966986,103060.0,103040.0,0.0004281]
[1737324596413,0.09569548,103050.0,103040.0,0.00057856]
[1737324598689,0.25556534,103050.0,103020.0,0.0004282]
[1737324598896,0.0489,103040.0,103020.0,0.00015047]
[1737324599124,0.17646534,103030.0,102990.0,0.01923014]
[1737324599325,0.0791,103020.0,102990.0,0.01923014]
[1737324599499,0.0791,103020.0,102990.0,0.11374363]